[Event "Austria Championship Blitz 2024"]
[Site "Innsbruck"]
[Date "2024.06.01"]
[Round "4.14"]
[White "Schranzhofer, Marco"]
[Black "Khalakhan, Jurij"]
[Result "1-0"]
[ECO "B00"]
[WhiteElo "1908"]
[BlackElo "2175"]
[Annotator "RC"]
[PlyCount "111"]
[EventDate "2024.06.01"]
[EventType "swiss"]
[EventCountry "AUT"]
[SourceTitle "playchess.com"]
[Source "ChessBase"]
[SourceQuality "1"]
[TimeControl "180+2"]

1. e4 {[%emt 0:00:02]} g6 {[%emt 0:00:00]} 2. c3 {[%emt 0:00:01]} b6 {[%emt 0:00:02]} 3. d4 {[%emt 0:00:02]} Bb7 {[%emt 0:00:01]} 4. Bd3 {[%emt 0:00:01]} Bg7 {[%emt 0:00:01]} 5. Nf3 {[%emt 0:00:02]} e6 {[%emt 0:00:00]} 6. O-O {[%emt 0:00:01]} Ne7 {[%emt 0:00:01]} 7. Bg5 {[%emt 0:00:01]} h6 {[%emt 0:00:04]} 8. Bxe7 {[%emt 0:00:01]} Qxe7 {[%emt 0:00:01]} 9. Nbd2 {[%emt 0:00:02]} d6 {[%emt 0:00:01]} 10. Re1 {[%emt 0:00:01]} Nd7 {[%emt 0:00:01]} 11. a4 {[%emt 0:00:01]} a6 {[%emt 0:00:03]} 12. Qe2 {[%emt 0:00:07]} c5 {[%emt 0:00:02]} 13. h3 {[%emt 0:00:07]} O-O {[%emt 0:00:02]} 14. Nf1 {[%emt 0:00:10]} Rfc8 {[%emt 0:00:33]} 15. Ng3 {[%emt 0:00:06]} cxd4 {[%emt 0:00:06]} 16. cxd4 {[%emt 0:00:05]} e5 {[%emt 0:00:15]} 17. d5 {[%emt 0:00:16]} Nc5 {[%emt 0:00:01]} 18. b4 {[%emt 0:00:01]} Nxd3 {[%emt 0:00:01]} 19. Qxd3 {[%emt 0:00:00]} Qd7 {[%emt 0:00:11]} 20. b5 {[%emt 0:01:20]} a5 {[%emt 0:00:19]} 21. Qe3 {[%emt 0:00:05]} Rc5 {[%emt 0:00:08]} 22. Rec1 {[%emt 0:00:07]} Rac8 {[%emt 0:00:01]} 23. Rxc5 {[%emt 0:00:01]} Rxc5 {[%emt 0:00:01]} 24. Rc1 {[%emt 0:00:03]} Bc8 {[%emt 0:00:08]} 25. Rxc5 {[%emt 0:00:19]} dxc5 {[%emt 0:00:02]} 26. Nd2 {[%emt 0:00:08]} f5 {[%emt 0:00:09]} 27. Qb3 {[%emt 0:00:31]} fxe4 {[%emt 0:00:16]} 28. Ngxe4 {[%emt 0:00:10]} Bb7 {[%emt 0:00:08]} 29. Nc3 {[%emt 0:00:04]} Kh7 {[%emt 0:00:11]} 30. Nde4 {[%emt 0:00:00]} g5 {[%emt 0:00:41]} 31. Qc2 {[%emt 0:00:01]} Kh8 {[%emt 0:00:03]} 32. Qd3 {[%emt 0:00:01]} g4 {[%emt 0:00:04]} 33. hxg4 {[%emt 0:00:01]} Qxg4 {[%emt 0:00:01]} 34. f3 {[%emt 0:00:02]} Qg6 {[%emt 0:00:08]} 35. d6 {[%emt 0:00:03]} Qe8 {[%emt 0:00:11]} 36. d7 {[%emt 0:00:01]} Qd8 {[%emt 0:00:00]} 37. Qd6 {[%emt 0:00:01]} Bf8 {[%emt 0:00:09]} 38. Qxe5+ {[%emt 0:00:01]} Bg7 {[%emt 0:00:01]} 39. Qd6 {[%emt 0:00:01]} Bxe4 {[%emt 0:00:03]} 40. Nxe4 {[%emt 0:00:02]} c4 {[%emt 0:00:01]} 41. Qe6 {[%emt 0:00:05]} Kh7 {[%emt 0:00:09]} 42. Qf5+ {[%emt 0:00:01]} Kg8 {[%emt 0:00:02]} 43. Qd5+ {[%emt 0:00:01]} Kh7 {[%emt 0:00:01]} 44. Qf5+ {[%emt 0:00:07]} Kg8 {[%emt 0:00:01]} 45. Qe6+ {[%emt 0:00:01]} Kh7 {[%emt 0:00:00]} 46. Qxc4 {[%emt 0:00:01]} Qh4 {[%emt 0:00:01]} 47. Qd3 {[%emt 0:00:06]} Qe1+ {[%emt 0:00:03]} 48. Qf1 {[%emt 0:00:01]} Qe3+ {[%emt 0:00:03]} 49. Qf2 {[%emt 0:00:03]} Qd3 {[%emt 0:00:04]} 50. Qd2 {[%emt 0:00:03]} Bd4+ {[%emt 0:00:04]} 51. Kh1 {[%emt 0:00:03]} Qf1+ {[%emt 0:00:01]} 52. Kh2 {[%emt 0:00:01]} Qg1+ {[%emt 0:00:02]} 53. Kh3 {[%emt 0:00:00]} Qh1+ {[%emt 0:00:01]} 54. Kg3 {[%emt 0:00:01]} Be5+ {[%emt 0:00:00]} 55. f4 {[%emt 0:00:01]} Bf6 {[%emt 0:00:04]} 56. Nxf6+ {[%emt 0:00:06]} 1-0

[Event "Austria Championship Blitz 2024"]
[Site "Innsbruck"]
[Date "2024.06.01"]
[Round "4.15"]
[White "Guba, Viktor"]
[Black "Mira, Helene"]
[Result "1-0"]
[ECO "B07"]
[WhiteElo "1891"]
[BlackElo "2047"]
[Annotator "RC"]
[PlyCount "107"]
[EventDate "2024.06.01"]
[EventType "swiss"]
[EventCountry "AUT"]
[SourceTitle "playchess.com"]
[Source "ChessBase"]
[SourceQuality "1"]
[TimeControl "180+2"]

1. e4 {[%emt 0:00:02]} d6 {[%emt 0:00:02]} 2. d4 {[%emt 0:00:02]} Nf6 {[%emt 0:00:01]} 3. Nc3 {[%emt 0:03:04]} c6 4. Nf3 {[%emt 0:00:00]} Bg4 {[%emt 0:00:02]} 5. h3 {[%emt 0:00:00]} Bxf3 {[%emt 0:00:02]} 6. Qxf3 {[%emt 0:00:00]} e6 {[%emt 0:00:02]} 7. Bg5 {[%emt 0:00:00]} Be7 {[%emt 0:00:01]} 8. O-O-O {[%emt 0:00:00]} d5 {[%emt 0:00:01]} 9. e5 {[%emt 0:00:00]} Nfd7 {[%emt 0:00:01]} 10. Bxe7 {[%emt 0:00:00]} Qxe7 {[%emt 0:00:01]} 11. Bd3 {[%emt 0:00:00]} f5 {[%emt 0:00:22]} 12. g4 {[%emt 0:00:00]} g6 {[%emt 0:00:06]} 13. gxf5 {[%emt 0:00:00]} exf5 {[%emt 0:00:02]} 14. Rhe1 {[%emt 0:00:00]} Nf8 {[%emt 0:00:03]} 15. Ne2 {[%emt 0:00:00]} Ne6 {[%emt 0:00:02]} 16. c3 {[%emt 0:00:00]} Nd7 {[%emt 0:00:02]} 17. Nf4 {[%emt 0:00:00]} Qg5 {[%emt 0:00:05]} 18. Kb1 {[%emt 0:00:00]} Qxf4 {[%emt 0:00:02]} 19. Qg2 {[%emt 0:00:00]} Qh6 {[%emt 0:00:02]} 20. c4 {[%emt 0:00:00]} Nf4 {[%emt 0:00:02]} 21. Qg3 {[%emt 0:00:00]} Nxd3 {[%emt 0:00:07]} 22. Rxd3 {[%emt 0:00:00]} dxc4 {[%emt 0:00:09]} 23. Rf3 {[%emt 0:00:00]} O-O-O {[%emt 0:00:07]} 24. e6 {[%emt 0:00:00]} Nf6 {[%emt 0:00:03]} 25. e7 {[%emt 0:00:00]} Rde8 {[%emt 0:00:06]} 26. Qd6 {[%emt 0:00:00]} Ne4 {[%emt 0:00:04]} 27. Qe6+ {[%emt 0:00:00]} Kc7 {[%emt 0:00:05]} 28. Rfe3 {[%emt 0:00:00]} Qg7 {[%emt 0:00:25]} 29. f3 {[%emt 0:00:00]} Nd6 {[%emt 0:00:09]} 30. d5 {[%emt 0:00:06]} cxd5 {[%emt 0:00:03]} 31. Qxd5 {[%emt 0:00:02]} a6 {[%emt 0:00:10]} 32. Rd1 {[%emt 0:00:12]} Nb5 {[%emt 0:00:05]} 33. Qd7+ {[%emt 0:00:06]} Kb8 {[%emt 0:00:02]} 34. Qxe8+ {[%emt 0:00:07]} Rxe8 {[%emt 0:00:01]} 35. Rd8+ {[%emt 0:00:00]} Kc7 {[%emt 0:00:03]} 36. Rxe8 {[%emt 0:00:02]} Qd4 {[%emt 0:00:02]} 37. Rc8+ {[%emt 0:00:11]} Kb6 {[%emt 0:00:03]} 38. Re1 {[%emt 0:00:09]} Qd3+ {[%emt 0:00:02]} 39. Ka1 {[%emt 0:00:01]} Nd6 {[%emt 0:00:05]} 40. Rd8 {[%emt 0:00:03]} c3 {[%emt 0:00:02]} 41. Rxd6+ {[%emt 0:00:02]} Qxd6 {[%emt 0:00:02]} 42. e8=Q {[%emt 0:00:02]} cxb2+ {[%emt 0:00:03]} 43. Kxb2 {[%emt 0:00:01]} Qb4+ {[%emt 0:00:01]} 44. Kc2 {[%emt 0:00:05]} Qc4+ {[%emt 0:00:03]} 45. Kd2 {[%emt 0:00:01]} Qxa2+ {[%emt 0:00:02]} 46. Ke3 {[%emt 0:00:04]} Qb3+ {[%emt 0:00:03]} 47. Kf2 {[%emt 0:00:01]} Qb2+ {[%emt 0:00:04]} 48. Kg3 {[%emt 0:00:02]} f4+ {[%emt 0:00:03]} 49. Kxf4 {[%emt 0:00:04]} Qf6+ {[%emt 0:00:01]} 50. Kg3 {[%emt 0:00:03]} Qg5+ {[%emt 0:00:00]} 51. Kf2 {[%emt 0:00:00]} Qd2+ {[%emt 0:00:03]} 52. Re2 {[%emt 0:00:01]} Qg5 {[%emt 0:00:04]} 53. Qe6+ {[%emt 0:00:02]} Ka7 {[%emt 0:00:02]} 54. Qe3+ {[%emt 0:00:01]} 1-0

[Event "Austria Championship Blitz 2024"]
[Site "Innsbruck"]
[Date "2024.06.01"]
[Round "4.16"]
[White "Wetscher, Wolfgang"]
[Black "Haralcic, Edin"]
[Result "1-0"]
[ECO "A00"]
[WhiteElo "1937"]
[BlackElo "1936"]
[Annotator "RC"]
[PlyCount "134"]
[EventDate "2024.06.01"]
[EventType "swiss"]
[EventCountry "AUT"]
[SourceTitle "playchess.com"]
[Source "ChessBase"]
[SourceQuality "1"]
[TimeControl "180+2"]

1. c3 {[%emt 0:00:02]} Nf6 {[%emt 0:00:02]} 2. Qc2 {[%emt 0:00:00]} d5 {[%emt 0:00:01]} 3. d3 {[%emt 0:00:01]} c5 {[%emt 0:00:01]} 4. Nd2 {[%emt 0:00:01]} e5 {[%emt 0:03:06]} 5. e4 d4 {[%emt 0:00:00]} 6. Ngf3 {[%emt 0:00:01]} Nc6 {[%emt 0:00:00]} 7. Be2 {[%emt 0:00:01]} Bd6 {[%emt 0:00:00]} 8. Nf1 {[%emt 0:00:01]} O-O {[%emt 0:00:00]} 9. h3 {[%emt 0:00:00]} h6 {[%emt 0:00:00]} 10. g4 {[%emt 0:00:01]} Be6 {[%emt 0:00:00]} 11. Ng3 {[%emt 0:00:02]} Rc8 {[%emt 0:00:00]} 12. c4 {[%emt 0:00:01]} a6 {[%emt 0:00:00]} 13. a3 {[%emt 0:00:01]} b5 {[%emt 0:00:00]} 14. b3 {[%emt 0:00:01]} bxc4 {[%emt 0:00:00]} 15. bxc4 {[%emt 0:00:01]} Rb8 {[%emt 0:00:00]} 16. Bd2 {[%emt 0:00:01]} Na5 {[%emt 0:00:00]} 17. Rb1 {[%emt 0:00:21]} Rxb1+ {[%emt 0:00:00]} 18. Qxb1 {[%emt 0:00:01]} Qc7 {[%emt 0:00:00]} 19. Bd1 {[%emt 0:00:24]} Rb8 {[%emt 0:00:00]} 20. Qc1 {[%emt 0:00:01]} Nb3 {[%emt 0:00:00]} 21. Qc2 {[%emt 0:00:25]} Qb6 {[%emt 0:00:00]} 22. O-O {[%emt 0:00:15]} Nxd2 {[%emt 0:00:00]} 23. Qxd2 {[%emt 0:00:16]} Qb2 {[%emt 0:00:00]} 24. Qa5 {[%emt 0:00:19]} Qb6 {[%emt 0:00:00]} 25. Qd2 {[%emt 0:00:06]} Bc7 {[%emt 0:00:00]} 26. Nf5 {[%emt 0:00:02]} Qb2 {[%emt 0:00:00]} 27. Bc2 {[%emt 0:00:29]} Bxf5 28. gxf5 {[%emt 0:00:01]} Nh5 {[%emt 0:00:00]} 29. Kh1 {[%emt 0:00:20]} Nf4 {[%emt 0:00:00]} 30. Rg1 {[%emt 0:00:05]} Qxa3 {[%emt 0:00:00]} 31. Ne1 {[%emt 0:00:09]} Rb2 {[%emt 0:00:01]} 32. Qd1 {[%emt 0:00:02]} Qa2 {[%emt 0:00:08]} 33. Qg4 {[%emt 0:00:03]} g6 {[%emt 0:00:26]} 34. fxg6 {[%emt 0:00:03]} Nxg6 {[%emt 0:00:05]} 35. Qc8+ {[%emt 0:00:07]} Kg7 {[%emt 0:00:10]} 36. Qxc7 {[%emt 0:00:02]} Rxc2 {[%emt 0:00:02]} 37. Nxc2 {[%emt 0:00:03]} Qxc2 {[%emt 0:00:01]} 38. Qxe5+ {[%emt 0:00:10]} Kg8 {[%emt 0:00:07]} 39. Qf6 {[%emt 0:00:10]} Qxd3 {[%emt 0:00:02]} 40. Rxg6+ {[%emt 0:00:05]} fxg6 {[%emt 0:00:03]} 41. Qxg6+ {[%emt 0:00:01]} Kf8 {[%emt 0:00:02]} 42. Qxh6+ {[%emt 0:00:02]} Kg8 {[%emt 0:00:01]} 43. Qg6+ {[%emt 0:00:02]} Kf8 {[%emt 0:00:01]} 44. Qf6+ {[%emt 0:00:01]} Kg8 {[%emt 0:00:01]} 45. Qg5+ {[%emt 0:00:05]} Kh7 {[%emt 0:00:02]} 46. Qf5+ {[%emt 0:00:02]} Kg8 {[%emt 0:00:01]} 47. Qd5+ {[%emt 0:00:03]} Kh7 {[%emt 0:00:01]} 48. Qf5+ {[%emt 0:00:01]} Kh6 {[%emt 0:00:01]} 49. h4 {[%emt 0:00:05]} Qxc4 {[%emt 0:00:07]} 50. Qg5+ {[%emt 0:00:02]} Kh7 {[%emt 0:00:01]} 51. h5 {[%emt 0:00:02]} Qf1+ {[%emt 0:00:03]} 52. Kh2 {[%emt 0:00:01]} Qxf2+ {[%emt 0:00:01]} 53. Kh3 {[%emt 0:00:01]} Qe3+ {[%emt 0:00:08]} 54. Qxe3 {[%emt 0:00:03]} dxe3 {[%emt 0:00:01]} 55. Kg3 {[%emt 0:00:01]} a5 {[%emt 0:00:03]} 56. e5 {[%emt 0:00:00]} a4 {[%emt 0:00:02]} 57. e6 {[%emt 0:00:01]} Kg7 {[%emt 0:00:00]} 58. h6+ {[%emt 0:00:01]} Kf6 {[%emt 0:00:02]} 59. h7 {[%emt 0:00:01]} Kxe6 {[%emt 0:00:03]} 60. h8=Q {[%emt 0:00:01]} e2 {[%emt 0:00:06]} 61. Kf2 {[%emt 0:00:02]} Kd5 {[%emt 0:00:00]} 62. Qa1 {[%emt 0:00:01]} Kc4 {[%emt 0:00:00]} 63. Qxa4+ {[%emt 0:00:03]} Kd3 {[%emt 0:00:00]} 64. Ke1 {[%emt 0:00:02]} c4 {[%emt 0:00:00]} 65. Qb5 {[%emt 0:00:01]} Kc3 {[%emt 0:00:04]} 66. Kxe2 {[%emt 0:00:02]} Kd4 {[%emt 0:00:01]} 67. Qb4 {[%emt 0:00:01]} Ke4 {[%emt 0:00:09]} 1-0

[Event "Austria Championship Blitz 2024"]
[Site "Innsbruck"]
[Date "2024.06.01"]
[Round "4.17"]
[White "Wimmer, Michael"]
[Black "Kienboeck, Benjamin"]
[Result "0-1"]
[ECO "B11"]
[WhiteElo "2142"]
[BlackElo "2187"]
[Annotator "RC"]
[PlyCount "69"]
[EventDate "2024.06.01"]
[EventType "swiss"]
[EventCountry "AUT"]
[SourceTitle "playchess.com"]
[Source "ChessBase"]
[SourceQuality "1"]
[TimeControl "180+2"]

1. e4 {[%emt 0:00:03]} c6 {[%emt 0:00:01]} 2. Nc3 {[%emt 0:00:07]} d5 {[%emt 0:00:04]} 3. Qe2 {[%emt 0:00:01]} d4 {[%emt 0:00:20]} 4. Nd1 {[%emt 0:00:02]} e5 {[%emt 0:00:15]} 5. g3 {[%emt 0:00:04]} Bd6 {[%emt 0:00:09]} 6. Bg2 {[%emt 0:00:03]} c5 {[%emt 0:00:08]} 7. d3 {[%emt 0:00:05]} Nc6 {[%emt 0:00:05]} 8. f4 {[%emt 0:00:07]} Qc7 {[%emt 0:00:20]} 9. Nf3 {[%emt 0:00:09]} Bg4 {[%emt 0:00:27]} 10. Nf2 {[%emt 0:00:16]} Bxf3 {[%emt 0:00:09]} 11. Qxf3 {[%emt 0:00:08]} O-O-O {[%emt 0:00:09]} 12. a3 {[%emt 0:00:09]} Kb8 {[%emt 0:00:03]} 13. O-O {[%emt 0:00:03]} h5 {[%emt 0:00:07]} 14. Bd2 {[%emt 0:00:24]} Nf6 {[%emt 0:00:11]} 15. Rab1 {[%emt 0:00:35]} Ne7 {[%emt 0:00:23]} 16. Nh3 {[%emt 0:00:33]} Ng6 {[%emt 0:00:06]} 17. Ng5 {[%emt 0:00:16]} h4 {[%emt 0:00:06]} 18. f5 {[%emt 0:00:06]} Nf8 {[%emt 0:00:06]} 19. g4 {[%emt 0:00:08]} N8h7 {[%emt 0:00:11]} 20. Rfc1 {[%emt 0:00:08]} Nxg5 {[%emt 0:00:04]} 21. Bxg5 {[%emt 0:00:02]} Be7 {[%emt 0:00:01]} 22. Bd2 {[%emt 0:00:09]} Nh7 {[%emt 0:00:04]} 23. b4 {[%emt 0:00:05]} c4 {[%emt 0:00:02]} 24. dxc4 {[%emt 0:00:04]} Qxc4 {[%emt 0:00:01]} 25. Bf1 {[%emt 0:00:01]} Qc7 {[%emt 0:00:01]} 26. Bd3 {[%emt 0:00:03]} Bg5 {[%emt 0:00:01]} 27. Qf2 {[%emt 0:00:02]} Bxd2 28. Qxd2 {[%emt 0:00:00]} f6 {[%emt 0:00:05]} 29. Qe2 {[%emt 0:00:03]} Ng5 {[%emt 0:00:02]} 30. Rb3 {[%emt 0:00:02]} Qd6 {[%emt 0:00:03]} 31. c4 {[%emt 0:00:02]} dxc3 {[%emt 0:00:02]} 32. Rbxc3 {[%emt 0:00:01]} h3 {[%emt 0:00:04]} 33. Bb5 {[%emt 0:00:04]} Qd4+ {[%emt 0:00:02]} 34. Kh1 {[%emt 0:00:02]} Nxe4 {[%emt 0:00:05]} 35. Rc4 {[%emt 0:00:05]} 0-1

[Event "Austria Championship Blitz 2024"]
[Site "Innsbruck"]
[Date "2024.06.01"]
[Round "4.18"]
[White "Walder, Elias"]
[Black "Vrban, Damir"]
[Result "0-1"]
[ECO "A25"]
[WhiteElo "2035"]
[BlackElo "2151"]
[Annotator "RC"]
[PlyCount "104"]
[EventDate "2024.06.01"]
[EventType "swiss"]
[EventCountry "AUT"]
[SourceTitle "playchess.com"]
[Source "ChessBase"]
[SourceQuality "1"]
[TimeControl "180+2"]

1. c4 {[%emt 0:00:01]} Nc6 {[%emt 0:00:04]} 2. g3 {[%emt 0:00:02]} e5 {[%emt 0:00:06]} 3. Bg2 {[%emt 0:00:01]} g6 {[%emt 0:00:04]} 4. Nc3 {[%emt 0:00:02]} Bg7 {[%emt 0:00:01]} 5. e3 {[%emt 0:00:01]} Nge7 {[%emt 0:00:01]} 6. Nge2 {[%emt 0:00:01]} a6 {[%emt 0:00:12]} 7. O-O {[%emt 0:00:03]} O-O {[%emt 0:00:02]} 8. d4 {[%emt 0:00:01]} exd4 {[%emt 0:00:09]} 9. Nxd4 {[%emt 0:00:02]} Nxd4 {[%emt 0:00:11]} 10. exd4 {[%emt 0:00:01]} Nf5 {[%emt 0:00:06]} 11. Ne2 {[%emt 0:00:10]} d6 {[%emt 0:00:13]} 12. b3 {[%emt 0:00:09]} Rb8 {[%emt 0:00:03]} 13. Bb2 {[%emt 0:00:03]} b5 {[%emt 0:00:05]} 14. Qd3 {[%emt 0:00:14]} Re8 {[%emt 0:00:08]} 15. Rfe1 {[%emt 0:00:07]} c5 {[%emt 0:00:59]} 16. Bc3 {[%emt 0:00:28]} Bb7 {[%emt 0:00:12]} 17. dxc5 {[%emt 0:00:06]} Bxg2 {[%emt 0:00:07]} 18. Kxg2 {[%emt 0:00:06]} dxc5 {[%emt 0:00:05]} 19. Qxd8 {[%emt 0:00:06]} Rbxd8 {[%emt 0:00:03]} 20. Bxg7 {[%emt 0:00:03]} Kxg7 {[%emt 0:00:01]} 21. cxb5 {[%emt 0:00:05]} axb5 {[%emt 0:00:02]} 22. Nc3 {[%emt 0:00:02]} Nd4 {[%emt 0:00:21]} 23. Rad1 {[%emt 0:00:07]} Rxe1 {[%emt 0:00:12]} 24. Rxe1 {[%emt 0:00:01]} c4 {[%emt 0:00:03]} 25. bxc4 {[%emt 0:00:08]} bxc4 {[%emt 0:00:01]} 26. Rd1 {[%emt 0:00:09]} Ne6 {[%emt 0:00:08]} 27. Rxd8 {[%emt 0:00:01]} Nxd8 {[%emt 0:00:00]} 28. a4 {[%emt 0:00:03]} Nc6 {[%emt 0:00:02]} 29. Kf3 {[%emt 0:00:04]} Kf6 {[%emt 0:00:06]} 30. Ke4 {[%emt 0:00:02]} Ke6 {[%emt 0:00:01]} 31. Nb5 {[%emt 0:00:04]} f5+ {[%emt 0:00:01]} 32. Ke3 {[%emt 0:00:08]} Kd5 {[%emt 0:00:01]} 33. Nc3+ {[%emt 0:00:08]} Kc5 {[%emt 0:00:06]} 34. h4 {[%emt 0:00:04]} h6 {[%emt 0:00:02]} 35. h5 {[%emt 0:00:03]} g5 {[%emt 0:00:03]} 36. f4 {[%emt 0:00:07]} g4 {[%emt 0:00:02]} 37. Ne2 {[%emt 0:00:05]} Kb4 {[%emt 0:00:06]} 38. Nd4 {[%emt 0:00:01]} Nxd4 {[%emt 0:00:02]} 39. Kxd4 {[%emt 0:00:02]} c3 {[%emt 0:00:02]} 40. a5 {[%emt 0:00:01]} c2 {[%emt 0:00:01]} 41. a6 {[%emt 0:00:01]} c1=Q {[%emt 0:00:02]} 42. a7 {[%emt 0:00:02]} Qa3 {[%emt 0:00:02]} 43. Ke5 {[%emt 0:00:01]} Qxa7 {[%emt 0:00:03]} 44. Kxf5 {[%emt 0:00:02]} Qg7 {[%emt 0:00:00]} 45. Ke6 {[%emt 0:00:02]} Kc4 {[%emt 0:00:02]} 46. f5 {[%emt 0:00:01]} Kd4 {[%emt 0:00:01]} 47. f6 {[%emt 0:00:01]} Qg8+ {[%emt 0:00:02]} 48. Ke7 {[%emt 0:00:04]} Ke5 {[%emt 0:00:05]} 49. f7 {[%emt 0:00:01]} Qg5+ {[%emt 0:00:02]} 50. Ke8 {[%emt 0:00:02]} Ke6 {[%emt 0:00:03]} 51. f8=Q {[%emt 0:00:05]} Qb5+ {[%emt 0:00:02]} 52. Kd8 {[%emt 0:00:05]} Qb8# {[%emt 0:00:01]} 0-1

[Event "Austria Championship Blitz 2024"]
[Site "Innsbruck"]
[Date "2024.06.01"]
[Round "4.19"]
[White "Hatzl, Johannes"]
[Black "Sovago, Philipp"]
[Result "1-0"]
[ECO "D00"]
[WhiteElo "2074"]
[BlackElo "1954"]
[Annotator "RC"]
[PlyCount "77"]
[EventDate "2024.06.01"]
[EventType "swiss"]
[EventCountry "AUT"]
[SourceTitle "playchess.com"]
[Source "ChessBase"]
[SourceQuality "1"]
[TimeControl "180+2"]

1. d4 {[%emt 0:00:01]} Nf6 {[%emt 0:00:00]} 2. Bf4 {[%emt 0:00:01]} d5 {[%emt 0:00:07]} 3. e3 {[%emt 0:00:01]} e6 {[%emt 0:00:03]} 4. Nd2 {[%emt 0:00:02]} Bd6 {[%emt 0:00:02]} 5. Bg3 {[%emt 0:00:01]} Bxg3 {[%emt 0:00:04]} 6. hxg3 {[%emt 0:00:01]} Nc6 {[%emt 0:00:07]} 7. c3 {[%emt 0:00:02]} Ne7 {[%emt 0:00:03]} 8. Bd3 {[%emt 0:00:04]} Bd7 {[%emt 0:00:14]} 9. Ngf3 {[%emt 0:00:04]} c6 {[%emt 0:00:09]} 10. Qe2 {[%emt 0:00:07]} Qc7 {[%emt 0:00:06]} 11. e4 {[%emt 0:00:12]} dxe4 {[%emt 0:00:03]} 12. Nxe4 {[%emt 0:00:01]} Nxe4 {[%emt 0:00:05]} 13. Qxe4 {[%emt 0:00:02]} g6 {[%emt 0:00:15]} 14. Ne5 {[%emt 0:00:06]} f6 {[%emt 0:00:26]} 15. Nf3 {[%emt 0:00:35]} O-O-O {[%emt 0:00:08]} 16. O-O {[%emt 0:00:12]} h5 {[%emt 0:00:22]} 17. b4 {[%emt 0:00:09]} g5 {[%emt 0:00:11]} 18. a4 {[%emt 0:00:11]} h4 {[%emt 0:00:01]} 19. gxh4 {[%emt 0:00:15]} gxh4 {[%emt 0:00:01]} 20. b5 {[%emt 0:00:27]} h3 {[%emt 0:00:15]} 21. g3 {[%emt 0:00:03]} Nd5 {[%emt 0:00:13]} 22. c4 {[%emt 0:00:12]} f5 {[%emt 0:00:03]} 23. Qe5 {[%emt 0:00:07]} Qxe5 {[%emt 0:00:08]} 24. Nxe5 {[%emt 0:00:01]} Ne7 {[%emt 0:00:06]} 25. Nf7 {[%emt 0:00:06]} Ng6 {[%emt 0:00:13]} 26. Rad1 {[%emt 0:00:15]} Rhg8 {[%emt 0:00:15]} 27. Nxd8 {[%emt 0:00:03]} Kxd8 {[%emt 0:00:01]} 28. Kh2 {[%emt 0:00:02]} e5 {[%emt 0:00:04]} 29. dxe5 {[%emt 0:00:02]} Nxe5 {[%emt 0:00:01]} 30. Bxf5 {[%emt 0:00:06]} Kc7 {[%emt 0:00:04]} 31. Bxd7 Nxd7 {[%emt 0:00:01]} 32. Kxh3 {[%emt 0:00:04]} cxb5 {[%emt 0:00:04]} 33. cxb5 {[%emt 0:00:02]} Nb6 {[%emt 0:00:03]} 34. Rc1+ {[%emt 0:00:03]} Kd6 {[%emt 0:00:01]} 35. Rfd1+ {[%emt 0:00:01]} Ke5 {[%emt 0:00:01]} 36. a5 {[%emt 0:00:00]} Nd5 {[%emt 0:00:02]} 37. Rc5 {[%emt 0:00:02]} Rd8 {[%emt 0:00:01]} 38. f4+ {[%emt 0:00:05]} Kd6 {[%emt 0:00:01]} 39. Rcxd5+ {[%emt 0:00:32]} 1-0

[Event "Austria Championship Blitz 2024"]
[Site "Innsbruck"]
[Date "2024.06.01"]
[Round "4.20"]
[White "Schnegg, Anna-Lena"]
[Black "Muehlbacher, Bernhard"]
[Result "1-0"]
[ECO "E65"]
[WhiteElo "2124"]
[BlackElo "1960"]
[Annotator "RC"]
[PlyCount "87"]
[EventDate "2024.06.01"]
[EventType "swiss"]
[EventCountry "AUT"]
[SourceTitle "playchess.com"]
[Source "ChessBase"]
[SourceQuality "1"]
[TimeControl "180+2"]

1. c4 {[%emt 0:00:01]} c5 {[%emt 0:00:01]} 2. Nc3 {[%emt 0:00:01]} Nc6 {[%emt 0:00:01]} 3. g3 {[%emt 0:00:01]} g6 {[%emt 0:00:00]} 4. Bg2 {[%emt 0:00:00]} Bg7 {[%emt 0:00:01]} 5. e4 {[%emt 0:00:01]} d6 {[%emt 0:00:01]} 6. Nge2 {[%emt 0:00:02]} Nf6 {[%emt 0:00:01]} 7. O-O {[%emt 0:00:02]} O-O {[%emt 0:00:01]} 8. d4 {[%emt 0:00:03]} cxd4 {[%emt 0:00:03]} 9. Nxd4 {[%emt 0:00:01]} Bd7 {[%emt 0:00:03]} 10. h3 {[%emt 0:00:03]} Qc8 {[%emt 0:00:00]} 11. Nxc6 {[%emt 0:00:18]} bxc6 {[%emt 0:00:06]} 12. Kh2 {[%emt 0:00:05]} Be6 {[%emt 0:00:06]} 13. Qe2 {[%emt 0:00:34]} Rb8 {[%emt 0:00:11]} 14. Be3 {[%emt 0:00:11]} Qa6 {[%emt 0:00:03]} 15. b3 {[%emt 0:00:06]} Nd7 {[%emt 0:00:12]} 16. Rac1 {[%emt 0:00:04]} Qa5 {[%emt 0:00:18]} 17. Na4 {[%emt 0:00:17]} Qc7 {[%emt 0:00:51]} 18. f4 {[%emt 0:00:06]} Nb6 {[%emt 0:00:02]} 19. Nc3 {[%emt 0:00:18]} Bd7 {[%emt 0:00:05]} 20. f5 {[%emt 0:00:33]} Bc8 {[%emt 0:00:10]} 21. Bg5 {[%emt 0:00:12]} Re8 {[%emt 0:00:04]} 22. Qf3 {[%emt 0:00:17]} Nd7 {[%emt 0:00:03]} 23. fxg6 {[%emt 0:00:01]} Ne5 {[%emt 0:00:11]} 24. gxf7+ {[%emt 0:00:03]} Kf8 {[%emt 0:00:27]} 25. fxe8=Q+ Kxe8 {[%emt 0:00:00]} 26. Qh5+ {[%emt 0:00:07]} Kd8 {[%emt 0:00:11]} 27. Qxh7 {[%emt 0:00:02]} Bf6 {[%emt 0:00:14]} 28. Bxf6 {[%emt 0:00:05]} exf6 {[%emt 0:00:00]} 29. Qg8+ {[%emt 0:00:02]} Ke7 {[%emt 0:00:04]} 30. Qg7+ {[%emt 0:00:03]} Nf7 {[%emt 0:00:05]} 31. Qxf6+ {[%emt 0:00:03]} Kf8 {[%emt 0:00:02]} 32. Rf2 {[%emt 0:00:02]} Rb7 {[%emt 0:00:02]} 33. Rcf1 {[%emt 0:00:01]} Kg8 {[%emt 0:00:06]} 34. Qxf7+ {[%emt 0:00:03]} Qxf7 {[%emt 0:00:01]} 35. Rxf7 {[%emt 0:00:01]} Rxf7 {[%emt 0:00:02]} 36. Rxf7 {[%emt 0:00:01]} Kxf7 {[%emt 0:00:01]} 37. g4 {[%emt 0:00:01]} Ke6 {[%emt 0:00:01]} 38. Kg3 {[%emt 0:00:01]} Ke5 {[%emt 0:00:00]} 39. h4 {[%emt 0:00:01]} Be6 {[%emt 0:00:02]} 40. h5 {[%emt 0:00:01]} Bg8 {[%emt 0:00:03]} 41. Ne2 {[%emt 0:00:01]} a5 {[%emt 0:00:02]} 42. g5 {[%emt 0:00:02]} a4 {[%emt 0:00:03]} 43. h6 {[%emt 0:00:02]} Bh7 {[%emt 0:00:02]} 44. bxa4 {[%emt 0:00:31]} 1-0